bitfinex/quotes_BTCUSD_20220304
["timestamp","ask_amount","ask_price","bid_price","bid_amount"]
[1646373867361,0.37556984,41430.0,41418.0,0.15]
[1646373867560,0.060409,41427.0,41418.0,0.15]
[1646373868162,0.30833482,41427.0,41419.0,0.2844036]
[1646373868460,0.30833482,41427.0,41419.0,0.3844036]
[1646373868461,0.060409,41427.0,41419.0,0.3844036]
[1646373868660,0.060409,41427.0,41419.0,0.2844036]
[1646373869266,0.060409,41427.0,41421.0,0.21179695]
[1646373869462,0.060409,41427.0,41419.0,0.2844036]
[1646373870707,0.08388159,41427.0,41418.0,0.162402]
[1646373871706,0.08388159,41427.0,41418.0,0.160402]
[1646373874055,0.08388159,41427.0,41420.0,0.06040031]
[1646373874253,0.08388159,41427.0,41420.0,0.21040031]
[1646373874458,0.14412796,41431.0,41421.0,0.31516784]
[1646373874657,0.31601719,41432.0,41426.0,0.15]
[1646373874854,0.22321919,41437.0,41422.0,0.2]
[1646373874855,0.22321919,41437.0,41428.0,0.060385]
[1646373874856,0.22235,41437.0,41428.0,0.060385]
[1646373875053,0.22235,41437.0,41433.0,0.21999242]
[1646373875054,0.6303,41437.0,41433.0,0.21999242]
[1646373875253,0.42,41437.0,41433.0,0.21999242]
[1646373877402,0.42,41437.0,41435.0,0.160365]
[1646373877805,0.42,41437.0,41435.0,0.2207436]
[1646373879809,0.42,41437.0,41435.0,0.0603786]
[1646373880008,0.42,41437.0,41430.0,0.31516784]
[1646373880309,0.42,41437.0,41429.0,0.1207572]
[1646373880909,0.2262188,41435.0,41429.0,0.1207572]
[1646373881366,0.01114595,41434.0,41427.0,0.12077673]
[1646373881563,0.25444029,41435.0,41423.0,0.38938929]
[1646373881564,0.01135698,41433.0,41423.0,0.38938929]
[1646373881763,0.01287485,41431.0,41423.0,0.27078929]
[1646373881965,0.120801,41429.0,41423.0,0.27078929]
[1646373882162,0.120801,41429.0,41423.0,0.15]
[1646373882862,0.01020642,41428.0,41423.0,0.15]
[1646373883663,0.01020642,41428.0,41426.0,0.20113144]
[1646373884163,0.01443321,41428.0,41426.0,0.20113144]
[1646373884363,0.13305602,41429.0,41426.0,0.20113144]
[1646373884562,0.120801,41429.0,41426.0,0.20113144]
[1646373884808,0.110801,41429.0,41426.0,0.20113144]
[1646373886213,0.0604,41430.0,41426.0,0.20113144]
[1646373888553,0.0604,41430.0,41427.0,0.22909495]
[1646373888958,0.0604,41430.0,41428.0,0.060384]
[1646373889154,0.0604,41430.0,41427.0,0.22909495]
[1646373890161,0.060382,41435.0,41428.0,0.060383]
[1646373890357,0.060382,41435.0,41432.0,0.15]
[1646373890558,0.42,41437.0,41432.0,0.15]
[1646373890957,0.42,41437.0,41431.0,0.12074834]
[1646373891157,0.42,41437.0,41432.0,0.06037417]
[1646373891357,0.42,41437.0,41429.0,0.1]
[1646373891358,0.060381,41435.0,41429.0,0.1]
[1646373891956,0.060381,41435.0,41430.0,0.18006901]
[1646373892158,0.060381,41435.0,41429.0,0.1]
[1646373892408,0.060381,41435.0,41429.0,0.16038525]
[1646373892606,0.120765,41435.0,41430.0,0.15]
[1646373892809,0.060381,41435.0,41430.0,0.15]
[1646373893807,0.120765,41435.0,41430.0,0.15]
[1646373894408,0.120765,41435.0,41430.0,0.25]
[1646373894607,0.120765,41435.0,41430.0,0.15]
[1646373894807,0.120765,41435.0,41430.0,0.25]
[1646373895607,0.120765,41435.0,41433.0,0.20773287]
[1646373900619,0.060381,41435.0,41433.0,0.20773287]
[1646373901220,0.42,41437.0,41433.0,0.20773287]
[1646373901417,0.42,41437.0,41433.0,0.26810614]
[1646373901618,0.42,41437.0,41436.0,0.28094721]
[1646373901818,0.42,41437.0,41433.0,0.41810614]
[1646373902820,0.42,41437.0,41434.0,0.31516784]
[1646373903656,0.42,41437.0,41433.0,0.41810614]
[1646373903955,0.42,41437.0,41433.0,0.35773287]
[1646373905956,0.42,41437.0,41433.0,0.56654249]
[1646373906157,0.42,41437.0,41433.0,0.35773287]
[1646373907403,0.42,41437.0,41434.0,0.30574157]
[1646373907608,0.42,41437.0,41434.0,0.06037869]
[1646373908007,0.540769,41437.0,41433.0,0.20773287]
[1646373908205,0.120769,41436.0,41433.0,0.20773287]
[1646373908410,0.01123649,41434.0,41432.0,0.002]
[1646373908606,0.08385096,41433.0,41432.0,0.002]
[1646373908805,0.7658688,41433.0,41432.0,0.002]
[1646373909006,0.02416,41431.0,41418.0,0.15]
[1646373909206,0.120808,41429.0,41418.0,0.15]
[1646373909505,0.0113088,41427.0,41418.0,0.49172038]
[1646373909706,0.0113088,41427.0,41418.0,0.5248371]
[1646373910606,0.060405,41426.0,41418.0,0.5248371]
[1646373910806,0.07546865,41425.0,41418.0,0.33860301]
[1646373911064,0.12081,41424.0,41418.0,0.33860301]
[1646373911662,0.12081,41424.0,41419.0,0.1]
[1646373911866,0.01153986,41423.0,41419.0,0.1]
[1646373912064,0.0121618,41422.0,41419.0,0.1]
[1646373912265,0.0121618,41422.0,41418.0,0.15548629]
[1646373912668,0.0486,41430.0,41418.0,0.15548629]
[1646373912868,0.18121,41431.0,41428.0,0.11475276]
[1646373913167,0.5,41438.0,41428.0,0.6287003]
[1646373913365,0.05,41439.0,41429.0,0.47432554]
[1646373913567,0.06038,41432.0,41431.0,0.19994377]
[1646373913965,0.06038,41432.0,41431.0,0.31469653]
[1646373914364,0.06038,41432.0,41431.0,0.41469653]
[1646373915808,0.06038,41432.0,41431.0,0.21475276]
[1646373916006,0.06038,41432.0,41431.0,0.11475276]
[1646373916807,0.06038,41432.0,41431.0,0.21475276]
[1646373918208,0.06038,41432.0,41431.0,0.44259966]
[1646373918964,0.120763,41434.0,41431.0,0.7565472]
[1646373919166,0.181141,41441.0,41431.0,0.7565472]
[1646373919167,0.01216973,41442.0,41432.0,0.0486]
[1646373919362,0.0136137,41445.0,41441.0,0.11475276]
[1646373919565,0.4432,41446.0,41443.0,1.61475276]
[1646373919566,0.2294037,41446.0,41443.0,1.61475276]
[1646373919865,0.2185037,41446.0,41444.0,0.35659221]
[1646373920062,0.2185037,41446.0,41444.0,0.55477359]
[1646373920263,0.2185037,41446.0,41444.0,0.61313929]
[1646373920462,0.2185037,41446.0,41444.0,0.79064407]
[1646373920864,0.060254,41448.0,41446.0,1.5]
[1646373921064,0.060254,41448.0,41447.0,0.4287003]
[1646373921264,0.060254,41448.0,41447.0,0.21475276]
[1646373922409,0.060254,41448.0,41447.0,0.11475276]
[1646373922606,0.060254,41448.0,41447.0,0.21475276]
[1646373923808,0.060254,41448.0,41447.0,0.11475276]
[1646373924010,0.060254,41448.0,41447.0,0.27933728]
[1646373924312,0.060254,41448.0,41447.0,0.21475276]
[1646373925108,0.060254,41448.0,41447.0,0.42384205]
[1646373927167,0.060254,41448.0,41447.0,0.21475276]
[1646373927368,0.121713,41450.0,41449.0,0.12690799]
[1646373927769,0.121713,41450.0,41449.0,0.22690799]
[1646373934058,0.121713,41450.0,41449.0,0.12690799]
[1646373935862,0.001,41450.0,41449.0,0.12690799]
[1646373936464,0.001,41450.0,41449.0,0.22690799]
[1646373939310,0.001,41450.0,41449.0,0.12690799]
[1646373939311,0.30929112,41450.0,41449.0,0.12690799]
[1646373939511,0.001,41450.0,41449.0,0.12690799]
[1646373940715,0.182187,41453.0,41451.0,1.5]
[1646373940716,0.181087,41453.0,41451.0,1.5]
[1646373940914,0.0022,41454.0,41452.0,0.67164388]
[1646373941168,0.0022,41454.0,41452.0,1.22898357]
[1646373941368,0.0022,41454.0,41452.0,1.24258689]
[1646373941671,0.0022,41454.0,41452.0,1.23192449]
[1646373941866,0.0022,41454.0,41452.0,1.04258689]
[1646373942065,0.0022,41454.0,41452.0,1.24258689]
[1646373942266,0.0022,41454.0,41452.0,1.04258689]
[1646373942466,0.062547,41454.0,41452.0,1.04258689]
[1646373942866,0.062547,41454.0,41453.0,0.17483705]
[1646373943066,0.062547,41454.0,41453.0,0.22343705]
[1646373943466,0.062547,41454.0,41453.0,0.52978389]
[1646373943867,0.062547,41454.0,41453.0,0.62978389]
[1646373944069,0.0021,41459.0,41455.0,1.5]
[1646373944270,0.0021,41459.0,41458.0,0.11475276]
[1646373944473,0.0032,41463.0,41461.0,1.5]
[1646373944669,0.0011,41463.0,41462.0,1.5071996]
[1646373944907,0.0011,41463.0,41462.0,1.6721996]
[1646373945507,0.0011,41463.0,41462.0,0.62835276]
[1646373945707,0.0011,41463.0,41462.0,0.32835276]
[1646373945908,0.0011,41463.0,41462.0,0.26335276]
[1646373946310,0.0011,41476.0,41463.0,1.5]
[1646373946510,0.0011,41476.0,41469.0,0.17507376]
[1646373946711,0.0011,41476.0,41471.0,0.22142765]
[1646373946911,0.060318,41473.0,41470.0,0.0486]
[1646373947412,0.120641,41473.0,41471.0,0.21620525]
[1646373947610,0.1349197,41473.0,41471.0,0.21620525]
[1646373947812,0.120641,41473.0,41471.0,0.21620525]
[1646373949254,0.13331398,41473.0,41471.0,0.21620525]
[1646373949654,0.14526338,41473.0,41471.0,0.21620525]
[1646373950057,0.120642,41474.0,41471.0,0.21620525]
[1646373950058,0.0011,41472.0,41471.0,0.21620525]
[1646373954109,0.28372397,41488.0,41472.0,1.5]
[1646373954311,0.05,41486.0,41483.0,0.25]
[1646373954512,0.001,41492.0,41489.0,0.2]
[1646373954811,0.001,41492.0,41489.0,0.70417702]
[1646373955208,0.001,41492.0,41489.0,1.30117]
[1646373955512,0.001,41492.0,41490.0,1.5]
[1646373955513,0.0001,41491.0,41490.0,1.5]
[1646373955711,0.0001,41491.0,41490.0,0.0486]
[1646373956166,0.02026,41498.0,41491.0,0.45]
[1646373956370,1.00006,41500.0,41491.0,0.75417702]
[1646373956566,1.07422299,41500.0,41499.0,0.2]
[1646373956766,1.00006,41500.0,41499.0,0.2]
[1646373957165,1.02422,41500.0,41499.0,0.2]
[1646373957366,1.00006,41500.0,41499.0,0.2]
[1646373957767,1.36691,41500.0,41499.0,0.2]
[1646373958265,1.36691,41500.0,41485.0,0.30417702]
[1646373958266,1.50607,41500.0,41485.0,0.30417702]
[1646373958466,1.50607,41500.0,41483.0,0.3]
[1646373958467,0.01816,41497.0,41483.0,0.1]
[1646373958666,0.01816,41497.0,41484.0,0.093274]
[1646373959071,0.06023674,41491.0,41484.0,0.093274]
[1646373959267,0.07839674,41491.0,41486.0,0.2]
[1646373959467,0.02416,41494.0,41486.0,0.2]
[1646373959668,0.29593045,41499.0,41486.0,0.2]
[1646373959910,0.03524724,41497.0,41486.0,0.2]
[1646373960216,0.28223797,41495.0,41486.0,0.2]
[1646373960412,0.02416,41494.0,41486.0,0.2]
[1646373960613,0.02416,41494.0,41486.0,0.41346768]
[1646373960811,0.33390648,41494.0,41486.0,0.41346768]
[1646373961212,0.33390648,41494.0,41486.0,0.21346768]
[1646373962217,1.01211,41500.0,41493.0,0.17837142]
[1646373962218,0.33390648,41499.0,41493.0,0.17837142]
[1646373962416,0.02416,41499.0,41494.0,0.30974648]
[1646373962614,1.00006,41500.0,41497.0,0.19511376]
[1646373962813,1.00006,41500.0,41494.0,0.30974648]
[1646373963014,1.00006,41500.0,41493.0,0.17837142]
[1646373963015,1.02422,41500.0,41493.0,0.17837142]
[1646373963414,1.02422,41500.0,41493.0,0.4881179]
[1646373963657,1.02422,41500.0,41493.0,0.9381179]
[1646373963857,1.02422,41500.0,41494.0,0.18537069]
[1646373964258,1.02422,41500.0,41499.0,0.26176833]
[1646373964460,1.02422,41500.0,41495.0,0.064333]
[1646373964659,1.00006,41500.0,41495.0,0.064333]
[1646373965057,1.00006,41500.0,41494.0,0.28537069]
[1646373965260,1.00006,41500.0,41499.0,0.2]
[1646373965458,1.00006,41500.0,41499.0,0.44599888]
[1646373965660,1.00006,41500.0,41499.0,0.66075164]
[1646373965862,1.00006,41500.0,41499.0,0.54599888]
[1646373966058,1.00006,41500.0,41499.0,0.77897119]
[1646373966260,0.46804288,41500.0,41499.0,0.83924419]
[1646373966458,0.46804288,41500.0,41499.0,1.20926393]
[1646373966662,0.6497,41511.0,41499.0,1.20926393]
[1646373966663,0.25750427,41527.0,41518.0,0.45]
[1646373966860,0.25250427,41527.0,41525.0,0.45]
[1646373967160,0.25250427,41527.0,41526.0,0.0486]
[1646373967411,0.015,41529.0,41526.0,0.0486]
[1646373967613,0.015,41529.0,41527.0,0.30974648]
[1646373967815,0.0504014,41529.0,41523.0,0.0486]
[1646373968015,0.015,41529.0,41523.0,0.0516]
[1646373968414,0.23247581,41526.0,41524.0,0.30974648]
[1646373968611,0.015,41529.0,41523.0,0.0516]
[1646373968812,0.015,41529.0,41524.0,0.18843197]
[1646373969012,0.015,41529.0,41523.0,0.0516]
[1646373969613,0.01,41529.0,41523.0,0.0516]
[1646373970216,0.01,41529.0,41523.0,0.003]
[1646373970814,0.02416,41528.0,41523.0,0.003]
[1646373971060,0.17084338,41524.0,41523.0,0.003]
[1646373971256,0.02416,41523.0,41517.0,0.1]
[1646373971460,0.02416,41523.0,41515.0,0.16880074]
[1646373971861,0.02416,41527.0,41515.0,0.5835535]
[1646373972059,0.02416,41527.0,41518.0,0.18946559]
[1646373972258,0.02416,41527.0,41519.0,0.24391819]
[1646373972959,0.02416,41526.0,41519.0,0.060255]
[1646373973360,0.21569649,41527.0,41520.0,0.1829362]
[1646373973960,0.02416,41526.0,41522.0,0.24736159]
[1646373974159,0.22424794,41528.0,41522.0,0.24736159]
[1646373975110,0.02416,41527.0,41522.0,0.24736159]
[1646373975608,0.02416,41527.0,41522.0,0.43812173]
[1646373975808,0.19439891,41529.0,41522.0,0.43812173]
[1646373976009,0.02416,41529.0,41522.0,0.43812173]
[1646373976209,0.0011,41532.0,41523.0,0.16024611]
[1646373976408,0.0011,41532.0,41524.0,0.22580169]
[1646373976609,0.0011,41532.0,41524.0,0.34055445]
[1646373976807,0.0011,41532.0,41525.0,0.1]
[1646373977408,0.0011,41532.0,41530.0,0.23666592]
[1646373978411,0.0011,41532.0,41525.0,0.1]
[1646373978692,0.0011,41532.0,41524.0,0.33524276]
[1646373979289,0.0011,41532.0,41527.0,0.15400243]
[1646373979490,0.0011,41532.0,41530.0,0.17970153]
[1646373980092,0.0011,41532.0,41527.0,0.15400243]
[1646373980295,0.0011,41532.0,41525.0,0.1]
[1646373980494,0.0011,41532.0,41529.0,0.26042791]
[1646373980694,0.0011,41532.0,41525.0,0.1]
[1646373981294,0.0011,41532.0,41526.0,0.15400005]
[1646373982311,0.0011,41532.0,41528.0,0.060238]
[1646373982512,0.0011,41532.0,41528.0,0.12047249]
[1646373982710,0.0011,41532.0,41529.0,0.060236]
[1646373982910,0.0011,41532.0,41528.0,0.160238]
[1646373983112,0.0011,41532.0,41525.0,0.23523057]
[1646373983113,0.03524724,41530.0,41523.0,0.1]
[1646373983318,0.03524724,41530.0,41515.0,0.120499]
[1646373983319,0.75152274,41529.0,41513.0,0.11475276]
[1646373983512,0.38467274,41529.0,41511.0,0.45]
[1646373983711,0.38467274,41529.0,41514.0,0.11475276]
[1646373983913,0.38467274,41529.0,41512.0,0.060263]
[1646373984118,0.20491772,41523.0,41517.0,0.28786867]
[1646373984414,0.20491772,41523.0,41513.0,0.11475276]
[1646373984416,0.02416,41521.0,41513.0,0.11475276]
[1646373984613,0.07276,41521.0,41513.0,0.11475276]
[1646373985013,0.07276,41521.0,41511.0,0.11475276]
[1646373985312,0.07276,41521.0,41510.0,0.21568821]
[1646373985313,0.24184066,41516.0,41510.0,0.21568821]
[1646373985514,0.31191274,41520.0,41510.0,0.21568821]
[1646373985813,0.0486,41519.0,41510.0,0.27595421]
[1646373986062,0.31191274,41524.0,41510.0,0.27595421]
[1646373986063,0.0486,41521.0,41510.0,0.27595421]
[1646373986562,0.0486,41521.0,41511.0,0.06088172]
[1646373986767,0.23200043,41520.0,41514.0,0.2593532]
[1646373986962,0.0486,41521.0,41514.0,0.2593532]
[1646373987167,0.0486,41521.0,41517.0,0.1842351]
[1646373987365,0.0486,41521.0,41520.0,0.20601715]
[1646373987566,0.02416,41531.0,41520.0,0.20601715]
[1646373987763,0.02416,41531.0,41520.0,0.32076991]
[1646373987964,0.02416,41529.0,41520.0,0.32076991]
[1646373988164,0.18501879,41527.0,41521.0,0.1]
[1646373988763,0.02416,41526.0,41519.0,0.002]
[1646373988965,0.33456454,41526.0,41519.0,0.002]
[1646373989267,0.25541048,41521.0,41519.0,0.002]
[1646373989567,0.25541048,41521.0,41510.0,0.23245276]
[1646373989568,0.27957048,41521.0,41510.0,0.23245276]
[1646373989807,0.27957048,41521.0,41510.0,0.11475276]
[1646373989808,0.31040454,41520.0,41510.0,0.11475276]
[1646373990009,0.02416,41518.0,41508.0,0.01204]
[1646373990208,0.02416,41516.0,41508.0,0.01204]
[1646373990406,0.02416,41514.0,41504.0,0.007]
[1646373990606,0.31040454,41516.0,41507.0,0.25593943]
[1646373990607,0.02416,41512.0,41507.0,0.25593943]
[1646373990807,0.07276,41512.0,41507.0,0.25593943]
[1646373991008,0.0486,41512.0,41510.0,0.21349363]
[1646373991210,0.25721672,41511.0,41504.0,0.007]
[1646373991411,0.07276,41512.0,41503.0,0.25233535]
[1646373992208,0.07276,41512.0,41508.0,0.07153887]
[1646373992408,0.07276,41512.0,41505.0,0.17283677]
[1646373992809,0.25941059,41512.0,41505.0,0.17283677]
[1646373993009,0.25941059,41512.0,41504.0,0.21475276]
[1646373994062,0.07276,41512.0,41506.0,0.19600466]
[1646373994259,0.01204,41519.0,41506.0,0.19600466]
[1646373994461,0.02276,41517.0,41506.0,0.19600466]
[1646373994660,0.02276,41515.0,41506.0,0.19600466]
[1646373994958,0.01204,41522.0,41506.0,0.19600466]
[1646373994959,0.31016723,41514.0,41509.0,0.17921031]
[1646373995159,0.0486,41514.0,41509.0,0.17921031]
[1646373997914,0.0486,41519.0,41510.0,1.47254258]
[1646373998110,0.001,41518.0,41510.0,1.47254258]
[1646373998411,0.001,41518.0,41510.0,1.25]
[1646373998611,0.0486,41517.0,41506.0,0.002]
[1646373999013,0.20892516,41510.0,41506.0,0.002]
[1646373999410,0.20892516,41510.0,41502.0,0.39090536]
[1646373999614,0.20892516,41510.0,41500.0,0.1]
[1646374000211,0.20892516,41510.0,41500.0,0.16184349]
[1646374000413,0.20892516,41510.0,41500.0,0.24245029]
[1646374000813,0.20892516,41510.0,41500.0,0.1806068]
[1646374001057,0.20892516,41510.0,41499.0,0.1]
[1646374001458,0.25752516,41510.0,41499.0,0.1]
[1646374001659,0.25752516,41510.0,41497.0,0.3078657]
[1646374001861,0.25752516,41510.0,41498.0,0.28533677]
[1646374002264,0.21227773,41509.0,41500.0,0.22579267]
[1646374002463,0.0486,41508.0,41500.0,0.22579267]
[1646374002661,0.0486,41509.0,41500.0,0.22579267]
[1646374004464,0.0486,41509.0,41498.0,0.18533677]
[1646374005118,0.001,41510.0,41499.0,0.15]
[1646374005316,0.001,41510.0,41500.0,0.3078657]
[1646374005515,0.3296,41520.0,41505.0,0.16887806]
[1646374005717,0.20476128,41518.0,41509.0,0.23625857]
[1646374005915,0.20817835,41516.0,41509.0,0.23625857]
[1646374006116,0.05,41525.0,41509.0,0.23625857]
[1646374006317,0.41545,41524.0,41510.0,0.3078657]
[1646374006516,0.05,41525.0,41510.0,0.3078657]
[1646374006715,0.22309026,41527.0,41510.0,0.3078657]
[1646374006915,0.22309026,41527.0,41517.0,0.25940666]
[1646374007117,0.22309026,41527.0,41510.0,0.3078657]
[1646374007118,0.21825431,41523.0,41510.0,0.36173294]
[1646374007317,0.21825431,41523.0,41512.0,0.15930726]
[1646374007619,0.21825431,41523.0,41513.0,0.3078657]
[1646374008418,0.21825431,41523.0,41517.0,0.22258218]
[1646374009063,0.21825431,41523.0,41512.0,0.17764058]
[1646374009260,0.22309026,41527.0,41512.0,0.17764058]
[1646374009461,0.22309026,41527.0,41516.0,0.17322538]
[1646374009661,0.22309026,41527.0,41513.0,0.3078657]
[1646374010061,0.24725026,41527.0,41513.0,0.3078657]
[1646374010264,0.21546447,41521.0,41511.0,0.310263]
[1646374010464,0.21546447,41521.0,41511.0,0.25]
[1646374010661,0.21546447,41521.0,41511.0,0.46179891]
[1646374010961,0.21546447,41521.0,41511.0,0.31179891]
[1646374011365,0.21546447,41521.0,41514.0,0.20631974]
[1646374011761,0.02416,41527.0,41514.0,0.20631974]
[1646374011961,0.02416,41531.0,41515.0,0.3078657]
[1646374012162,0.002,41527.0,41515.0,0.3078657]
[1646374012610,0.002,41527.0,41515.0,0.36385703]
[1646374012814,0.002,41527.0,41520.0,0.34971683]
[1646374013413,0.71341888,41532.0,41520.0,0.34971683]
[1646374013611,0.71341888,41532.0,41521.0,0.3078657]
[1646374013812,0.68925888,41532.0,41523.0,0.253842]
[1646374014213,0.51583006,41532.0,41523.0,0.253842]
[1646374015515,0.51583006,41532.0,41520.0,0.34971683]
[1646374017369,0.53999006,41532.0,41517.0,0.001]
[1646374017571,0.53999006,41532.0,41517.0,0.101]
[1646374017768,0.53999006,41532.0,41521.0,0.25111564]
[1646374017769,0.22166529,41529.0,41521.0,0.25111564]
[1646374017970,0.53999006,41532.0,41521.0,0.25111564]
[1646374018369,0.53999006,41532.0,41518.0,0.16472998]
[1646374018569,0.53999006,41532.0,41519.0,0.3078657]
[1646374019371,0.51583006,41532.0,41523.0,0.20587457]
[1646374019574,0.53999006,41532.0,41521.0,0.24534056]
[1646374020013,0.02416,41530.0,41517.0,0.01204]
[1646374020409,0.02416,41530.0,41521.0,0.21592781]
[1646374020612,0.51583006,41532.0,41516.0,0.3078657]
[1646374021007,0.21296749,41527.0,41517.0,0.19000885]
[1646374021408,0.51583006,41532.0,41517.0,0.19000885]
[1646374022210,0.51583006,41532.0,41517.0,0.18993461]
[1646374022409,0.51583006,41532.0,41520.0,0.22226071]
[1646374022410,0.26818734,41529.0,41520.0,0.22226071]
[1646374022609,0.51583006,41532.0,41520.0,0.22226071]
[1646374022810,0.51583006,41532.0,41519.0,0.06830975]
[1646374023212,0.51583006,41532.0,41517.0,0.28993461]
[1646374023562,0.02416,41531.0,41517.0,0.28993461]
[1646374023762,0.51583006,41532.0,41524.0,0.2703984]
[1646374024164,0.51683006,41532.0,41524.0,0.16841543]
[1646374024962,0.0021,41532.0,41524.0,0.16841543]
[1646374025462,0.0011,41532.0,41524.0,0.16841543]
[1646374026464,0.02526,41532.0,41521.0,0.20695055]
[1646374026662,0.02526,41532.0,41513.0,0.3078657]
[1646374026864,0.02526,41532.0,41514.0,0.01204]
[1646374026865,0.76166,41530.0,41514.0,0.01204]
[1646374027062,0.02416,41528.0,41514.0,0.01204]
[1646374027313,0.36685,41524.0,41514.0,0.01204]
[1646374027512,0.02416,41524.0,41513.0,0.16013816]
[1646374028513,0.2581668,41524.0,41513.0,0.16013816]
[1646374028919,0.02416,41522.0,41506.0,0.4699057]
[1646374029113,0.9715068,41524.0,41506.0,0.4699057]
[1646374029114,0.02416,41520.0,41506.0,0.16204]
[1646374029714,0.07276,41521.0,41510.0,0.21052949]
[1646374029914,0.0486,41520.0,41511.0,0.18526356]
[1646374030114,0.0486,41519.0,41511.0,0.18526356]
[1646374030315,0.0486,41520.0,41511.0,0.18526356]
[1646374032179,0.0486,41520.0,41512.0,0.27249538]
[1646374032881,0.0486,41520.0,41511.0,0.18526356]
[1646374035510,0.0486,41520.0,41512.0,0.1997242]
[1646374035710,0.0486,41520.0,41511.0,0.18526356]
[1646374035908,0.0486,41520.0,41515.0,0.20372018]
[1646374036111,0.46858408,41525.0,41511.0,0.18526356]
[1646374036310,0.02416,41524.0,41511.0,0.18526356]
[1646374036511,0.07276,41524.0,41511.0,0.18526356]
[1646374037309,0.23504591,41518.0,41510.0,0.27512791]
[1646374037510,0.07276,41524.0,41510.0,0.27512791]
[1646374038310,0.07276,41524.0,41513.0,0.16660514]
[1646374038565,0.28966057,41521.0,41513.0,0.16660514]
[1646374039265,0.07276,41524.0,41513.0,0.16660514]
[1646374040470,0.0486,41524.0,41517.0,0.23147116]
[1646374040669,0.42014321,41530.0,41517.0,0.23147116]
[1646374040870,0.055,41530.0,41517.0,0.23147116]
[1646374041068,0.005,41530.0,41517.0,0.23147116]
[1646374041273,0.005,41530.0,41521.0,0.19646312]
[1646374041669,0.60790706,41529.0,41517.0,0.23147116]
[1646374041869,0.24105706,41529.0,41517.0,0.23147116]
[1646374042311,0.02416,41529.0,41517.0,0.41850563]
[1646374042513,0.0536,41531.0,41518.0,0.3078657]
[1646374042514,0.005,41531.0,41518.0,0.3078657]
[1646374042910,0.005,41531.0,41519.0,0.15]
[1646374043310,0.005,41531.0,41524.0,0.27745836]
[1646374043510,0.0011,41532.0,41524.0,0.27745836]
[1646374044313,0.0011,41532.0,41525.0,0.3078657]
[1646374044513,0.0011,41532.0,41527.0,0.21698206]
[1646374045113,0.0011,41532.0,41525.0,0.3078657]
[1646374045914,0.0011,41532.0,41528.0,0.19745455]
[1646374046157,0.0011,41532.0,41525.0,0.3078657]
[1646374046559,0.0011,41532.0,41528.0,0.2018861]
[1646374046758,0.0011,41532.0,41529.0,0.06975764]
[1646374046957,0.0011,41532.0,41525.0,0.3078657]
[1646374047159,0.0011,41532.0,41527.0,0.17722817]
[1646374047459,0.0011,41532.0,41525.0,0.3078657]
[1646374047660,0.0011,41532.0,41524.0,0.27745836]
[1646374047859,0.30201804,41534.0,41524.0,0.27745836]
[1646374048061,0.0971,41534.0,41524.0,0.5291377]
[1646374048261,0.0971,41534.0,41525.0,0.15749981]
[1646374048860,0.0971,41534.0,41524.0,0.33969995]
[1646374049063,0.28049144,41533.0,41524.0,0.33969995]
[1646374049260,0.0021,41537.0,41524.0,0.27745836]
[1646374049261,0.02626,41537.0,41524.0,0.27745836]
[1646374049660,0.02626,41537.0,41524.0,0.42745836]
[1646374049906,0.15973517,41532.0,41524.0,0.15]
[1646374050107,0.15973517,41532.0,41522.0,0.4078657]
[1646374050907,0.25190311,41528.0,41520.0,0.12954]
[1646374051109,0.15973517,41532.0,41519.0,0.24809528]
[1646374051307,0.15973517,41532.0,41520.0,0.3078657]
[1646374052111,0.29010616,41531.0,41520.0,0.51811102]
[1646374052510,0.29010616,41531.0,41520.0,0.3078657]
[1646374052711,0.29010616,41531.0,41519.0,0.23605528]
[1646374053113,0.15973517,41532.0,41520.0,0.3078657]
[1646374053971,0.25820435,41531.0,41520.0,0.3078657]
[1646374054373,0.15973517,41532.0,41520.0,0.3078657]
[1646374055570,0.21464657,41531.0,41520.0,0.3078657]
[1646374056373,0.15973517,41532.0,41520.0,0.3078657]
[1646374056975,0.15973517,41532.0,41520.0,0.4578657]
[1646374057172,0.15973517,41532.0,41522.0,0.18606763]
[1646374057413,0.15973517,41532.0,41520.0,0.4578657]
[1646374057714,0.15973517,41532.0,41520.0,0.3078657]
[1646374058114,0.15973517,41532.0,41520.0,0.4578657]
[1646374058816,0.15973517,41532.0,41526.0,0.21050786]
[1646374059015,0.15973517,41532.0,41520.0,0.53017938]
[1646374059215,0.15973517,41532.0,41520.0,0.4578657]
[1646374059815,0.15973517,41532.0,41523.0,0.1992383]
[1646374060017,0.15973517,41532.0,41525.0,0.28096969]
[1646374061254,0.15973517,41532.0,41521.0,0.1]
[1646374061457,0.19675091,41525.0,41520.0,0.15]
[1646374061755,0.04259655,41534.0,41517.0,0.3078657]
[1646374061955,0.04259655,41534.0,41519.0,0.36330107]
[1646374062156,0.24308793,41529.0,41520.0,0.55667128]
[1646374062355,0.06075655,41534.0,41519.0,0.15]
[1646374062854,0.19843205,41527.0,41517.0,0.5803657]
[1646374063054,0.19843205,41527.0,41517.0,0.2725]
[1646374063254,0.19843205,41527.0,41517.0,0.15]
[1646374064057,0.19843205,41527.0,41518.0,0.3078657]
[1646374064456,0.19843205,41527.0,41521.0,0.15658589]
[1646374064659,0.19843205,41527.0,41518.0,0.3078657]
[1646374065521,0.19343205,41527.0,41517.0,0.151]
[1646374065715,0.19343205,41527.0,41517.0,0.001]
[1646374066116,0.25975535,41523.0,41514.0,0.01204]
[1646374066315,0.0486,41525.0,41514.0,0.01204]
[1646374066917,0.0486,41525.0,41514.0,0.21928076]
[1646374067120,0.0486,41525.0,41514.0,0.01204]
[1646374067420,0.0486,41525.0,41514.0,0.25075394]
[1646374067819,0.0486,41525.0,41514.0,0.01204]
[1646374068420,0.16689277,41520.0,41514.0,0.01204]
[1646374068657,0.0486,41525.0,41514.0,0.01204]
[1646374068855,0.0486,41525.0,41514.0,0.16204]
[1646374069454,0.0486,41525.0,41514.0,0.01204]
[1646374069657,0.23480279,41525.0,41514.0,0.01204]
[1646374070256,0.23480279,41525.0,41518.0,0.20945066]
[1646374070459,0.18620279,41525.0,41518.0,0.20945066]
[1646374070858,0.18620279,41525.0,41514.0,0.01204]